Cogmind - Beta 13 X2 @@@ ROGUE MODE // 2024.01.26 @ 21:45:10 Player: Minty Result: Self-destructed Performance ------------- Evolutions (5) 2500 Regions Visited (9) 1800 Robots Destroyed (70) 350 Value Destroyed (2948) 2948 Prototype IDs (26) 520 Alien Tech Used (0) 0 Bonus (1421) 1421 TOTAL SCORE: 9539 Bonus ------- High Alert Combat Kills 285 Follower Combat Kills 368 Entered DSFs 500 Aligned with FarCom 300 Friendly Fire -32 Cogmind --------- Core Integrity 67/1000 Matter 266/300 Energy 100/100 System Corruption 38% Temperature Cool (0) Movement Core (50) Location -5/Factory Parts ------- > --- POWER (1) -------- (None) > --- PROPULSION (6) --- (None) > --- UTILITY (6) ------ Graphene Brace > --- WEAPON (4) ------- (None) > --- INVENTORY (5) ---- Sensor Drone Bay (16/20) Latent Energy Streamer Peak State ------------ > --- POWER ------------ Light Angular Momentum Engine > --- PROPULSION ------- Improved Titanium Leg Improved Titanium Leg Improved Titanium Leg Flexi-carbon Leg Flexi-carbon Leg Flexi-carbon Leg > --- UTILITY ---------- Advanced Heat Sink Huge Storage Unit Hardened Heavy Armor Plating Improved Medium Armor Plating Graphene Brace > --- WEAPON ----------- Hypervelocity Gauss Rifle Hypervelocity Gauss Rifle Hypervelocity Gauss Rifle Hypervelocity Gauss Rifle > --- INVENTORY -------- Nuclear Core Micro Nuclear Core Fission Core Light Fission Core Improved Trap Scanner Layered Heavy Armor Plating Layered Heavy Armor Plating Authchip [R/Combat] Authchip [Device] Authchip [Device] Authchip [Weapon] Authchip [Weapon] High-powered Tractor Beam High-powered Tractor Beam Sensor Drone Bay Latent Energy Streamer Heavy Ion Cannon Flak Gun Field Lobotomy Kit Proton Bomb Trap Proton Bomb Trap Proton Bomb Trap Proton Bomb Trap [Rating: 88] Favorites ----------- Power Light Ion Engine Engine Light Ion Engine Power Core Micro Nuclear Core Propulsion Improved Titanium Leg Treads Light Treads Leg Improved Titanium Leg Wheel Wheel Hover Unit Antigrav System Flight Unit Field Propulsion Drive Utility Huge Storage Unit Device Graphene Brace Storage Huge Storage Unit Processor Machine Analyzer Hackware System Shield Protection Hardened Heavy Armor Plating Weapon Hypervelocity Gauss Rifle Energy Gun Medium Laser Energy Cannon Heavy Ion Cannon Ballistic Gun Hypervelocity Gauss Rifle Ballistic Cannon Heavy Assault Cannon Launcher Rocket Launcher Special Weapon Field Lobotomy Kit Build | -11 -10 -10 -10 -9 -8 -7 -6 -6 -5 ------- Run | Yrd Mat Min Exi Min Mat Fac Fac DSF Fac Slots Evolved 10 | . . . . . 4 2 2 . 2 Power . | . . . . . . . . . . Propulsion 4 | . . . . . 2 1 . . 1 Utility 4 | . . . . . 1 1 1 . 1 Weapon 2 | . . . . . 1 . 1 . . Parts Attached 92 | . 6 5 1 . 19 20 1 10 30 Power 7 | . 1 . . . 2 2 . 1 1 Engine 5 | . 1 . . . 2 1 . 1 . Core 2 | . . . . . . 1 . . 1 Reactor . | . . . . . . . . . . Propulsion 36 | . 2 4 . . 10 3 . 4 13 Treads 12 | . 2 . . . 5 . . . 5 Leg 15 | . . . . . 4 3 . 4 4 Wheel 5 | . . 4 . . 1 . . . . Hover 1 | . . . . . . . . . 1 Flight 3 | . . . . . . . . . 3 Utility 23 | . 2 1 . . 4 7 1 . 8 Device 11 | . . 1 . . 1 4 1 . 4 Storage 1 | . 1 . . . . . . . . Processor 2 | . 1 . . . 1 . . . . Hackware 1 | . . . . . 1 . . . . Protection 8 | . . . . . 1 3 . . 4 Artifact . | . . . . . . . . . . Weapon 26 | . 1 . 1 . 3 8 . 5 8 Energy Gun 5 | . 1 . 1 . 1 2 . . . Energy Cannon 6 | . . . . . 1 2 . . 3 Ballistic Gun 9 | . . . . . . 2 . 4 3 Ballistic Cannon 1 | . . . . . . . . . 1 Launcher 2 | . . . . . . 2 . . . Special Weapon 3 | . . . . . 1 . . 1 1 Impact Weapon . | . . . . . . . . . . Slashing Weapon . | . . . . . . . . . . Piercing Weapon . | . . . . . . . . . . Special Melee Weapon . | . . . . . . . . . . Unidentified Prototypes 3 | . . 1 . . 1 1 . . . Corrupted Parts 2 | . . . . . . . . . 2 System Corruption 10 | . . . . . . . . . 10 Parts Lost 36 | . 1 . . . . 6 . . 29 Power 4 | . 1 . . . . 1 . . 2 Propulsion 16 | . . . . . . 1 . . 15 Utility 7 | . . . . . . 1 . . 6 Weapon 9 | . . . . . . 3 . . 6 Highest Loss Streak 15 | . 1 . . . . 3 . . 15 To Critical Strikes . | . . . . . . . . . . Average Slot Usage (%) 81 | . 87 100 91 71 80 77 80 90 61 Engine 8 | . 13 14 14 14 9 5 . 5 2 Treads 3 | . 25 2 . . 7 . . . 3 Leg 17 | . 2 . . . 25 37 33 33 17 Wheel 8 | . . 25 28 28 3 . . . . Device 7 | . . 8 12 . 1 6 13 13 10 Storage 9 | . 14 14 14 14 9 7 6 6 3 Processor 1 | . 3 5 . . 2 1 . . . Hackware 1 | . . . . . 6 . . . . Protection 3 | . . . . . 7 1 6 6 7 Energy Gun 7 | . 14 14 13 14 8 4 . . . Ballistic Gun 8 | . 14 14 8 . . 4 6 21 11 Naked Turns . | . . . . . . . . . . Heaviest Build 144 | 11 87 101 105 91 102 119 120 137 144 Greatest Support 120 | 20 40 40 26 26 80 97 90 100 120 Greatest Overweight (x) 35 | . 2 4 4 3 2 1 1 1 35 Average Overweight (x) 1 | . 1 2 3 3 1 . 1 1 . Largest Inventory Capacity 25 | . 25 25 25 25 25 25 25 25 25 Average Capacity 24 | . 23 25 25 25 25 25 25 25 20 Most Carried 25 | . 7 13 21 21 25 25 21 25 25 Average Carried 18 | . 6 11 17 21 23 21 20 23 18 Final Capacity 25 | 8 25 25 25 25 25 25 25 25 5 Final Carried 25 | 6 6 13 21 21 25 21 21 25 2 Class Distribution -------------------- 73% | Mutant 16% | Scavenger-Tank 6% | Scavenger-Mutant 4% | Scavenger-Skirmisher Dominant Class ---------------- Mutant | -10/Materials Mutant | -10/Mines Mutant | -10/Exiles Mutant | -9/Mines Mutant | -8/Materials Mutant | -7/Factory Mutant | -6/Factory Scavenger-Tank | -6/DSF Scavenger-Tank | -5/Factory Resources | -11 -10 -10 -10 -9 -8 -7 -6 -6 -5 ----------- Run | Yrd Mat Min Exi Min Mat Fac Fac DSF Fac Matter Collected 2240 | 200 83 44 . 47 170 243 128 414 911 Remotely 90 | . . . . . 90 . . . . Salvage Created 3025 | . 161 16 . . 876 568 . 282 1122 Parts 155 | . 11 3 . . 42 25 . 14 60 Haulers Intercepted . | . . . . . . . . . . Recyclers Shooed 3 | . . 1 . . 2 . . . . Parts Field Recycled . | . . . . . . . . . . Retrieved Matter . | . . . . . . . . . . Parts Self-Destructed . | . . . . . . . . . . Prevented . | . . . . . . . . . . Kills | -11 -10 -10 -10 -9 -8 -7 -6 -6 -5 ------- Run | Yrd Mat Min Exi Min Mat Fac Fac DSF Fac Combat Hostiles Destroyed 62 | . 4 . . . 20 17 . 4 17 Guns 37 | . 4 . . . 19 2 . 3 9 Cannons 10 | . . . . . . 3 . 1 6 AOE 12 | . . . . . . 11 . . 1 Classes Destroyed 13 | . 4 1 . . 2 4 . 1 1 Worker 3 | . . . . . . 2 . . 1 Builder 2 | . . 1 . . . 1 . . . Recycler 1 | . 1 . . . . . . . . Mechanic 2 | . 1 . . . . . . . 1 Swarmer 10 | . 3 . . . 4 3 . . . Grunt 35 | . 1 . . . 12 9 . 1 12 Brawler 1 | . . . . . 1 . . . . Duelist 2 | . . . . . . 1 . 1 . Protector 1 | . . . . . . . . . 1 Sentry 4 | . . . . . 3 . . . 1 Specialist 2 | . . . . . . . . 2 . Hunter 2 | . . . . . . 2 . . . Programmer 5 | . . . . . . 2 . . 3 Best Kill Streak 10 | . 3 1 . . 10 7 . 2 6 Combat Bots Only 10 | . 3 . . . 10 4 . 2 6 Max Kills in Single Turn 2 | . 1 1 . . 1 2 . 1 1 Gunslinging . | . . . . . . . . . . Exploded 2 | . . . . . . 2 . . 1 Melee . | . . . . . . . . . . Uniques/NPCs Destroyed . | . . . . . . . . . . Combat | -11 -10 -10 -10 -9 -8 -7 -6 -6 -5 -------- Run | Yrd Mat Min Exi Min Mat Fac Fac DSF Fac Hostile Shots Fired 614 | . 31 . . . 44 93 . 26 420 Missed 178 | . 14 . . . 10 31 . 9 114 Damage Taken 8259 | . 163 . . . 539 1221 . 401 5935 Core 1194 | . 35 . . . 73 153 . . 933 Absorbed by Shields . | . . . . . . . . . . Core Remaining (%) 90 | 100 . . . 86 86 78 . 100 . Volleys Fired 156 | . 16 2 . . 1 39 . 13 85 Largest 4 | . 2 2 . . 1 3 . 4 4 Hottest 164 | . 70 70 . . . 133 . 132 164 Shots Fired 396 | . 32 4 . 9 74 81 . 45 151 Gun 329 | . 32 4 . 9 73 54 . 42 115 Cannon 48 | . . . . . . 13 . 2 33 Launcher 14 | . . . . . . 14 . . . Special 5 | . . . . . 1 . . 1 3 Kinetic 230 | . 16 2 . . . 27 . 42 143 Thermal 128 | . 16 2 . 9 73 21 . 2 5 Explosive 14 | . . . . . . 14 . . . Electromagnetic 19 | . . . . . . 19 . . . Robot Hit Streak 19 | . 8 1 . 2 11 6 . 16 19 Robot Miss Streak 5 | . 4 1 . 2 2 4 . 3 5 Penetration Max 2 | . . . . . . . . 1 2 Secondary Targets 4 | . . . . . . . . 2 2 Max Gunslinging Chain 1 | . . . . . . . . 1 1 Autonomous 93 | . . . . 9 73 11 . . . Shots Hit Robots 260 | . 22 2 . 4 62 48 . 30 92 Core Hits 139 | . 6 2 . . 26 43 . 17 45 Critical Kills 11 | . . . . . . . . 2 9 Critical Parts Destroyed 27 | . . . . . . 1 . 9 17 Critical Strikes 47 | . 1 . . . . 1 . 11 34 Burn 1 | . 1 . . . . . . . . Meltdown 1 | . . . . . . . . . 1 Destroy 40 | . . . . . . 1 . 11 28 Blast 5 | . . . . . . . . . 5 Melee Attacks . | . . . . . . . . . . Impact . | . . . . . . . . . . Slashing . | . . . . . . . . . . Piercing . | . . . . . . . . . . Sneak Attacks . | . . . . . . . . . . Combat Hostiles . | . . . . . . . . . . Follow-up Attacks . | . . . . . . . . . . Damage Inflicted 6440 | . 309 29 . 113 1773 2160 . 257 1799 Guns 3537 | . 307 29 . 113 1727 512 . 229 620 Cannons 1249 | . . . . . . 177 . 28 1044 Explosions 1543 | . . . . . . 1465 . . 78 Melee . | . . . . . . . . . . Ramming 111 | . 2 . . . 46 6 . . 57 Kinetic 2295 | . 171 29 . . . 280 . 229 1586 Thermal 2527 | . 136 . . 113 1727 367 . 28 156 Explosive 1129 | . . . . . . 1129 . . . Electromagnetic 378 | . . . . . . 378 . . . Impact . | . . . . . . . . . . Slashing . | . . . . . . . . . . Piercing . | . . . . . . . . . . Highest Corruption 38 | . . . . . . 7 . . 38 Average Corruption 9 | . . . . . . 5 . . 13 Corruption Purged . | . . . . . . . . . . Corruption Blocked . | . . . . . . . . . . Effects 28 | . . . . . . 14 . . 14 Message Errors 6 | . . . . . . 4 . . 2 Matter Fused 4 | . . . . . . 2 . . 2 Heat Flow Errors 1 | . . . . . . 1 . . . Energy Discharges 8 | . . . . . . 2 . . 6 Parts Rejected 1 | . . . . . . . . . 1 Data Loss (minor) 4 | . . . . . . 2 . . 2 Data Loss (major) 1 | . . . . . . 1 . . . Alerts 1 | . . . . . . 1 . . . Misdirections 1 | . . . . . . . . . 1 Weapon Failures 1 | . . . . . . 1 . . . Overload Shots . | . . . . . . . . . . Overflow Damage 166 | . . . . . . 46 . . 120 Projectiles 121 | . . . . . . 1 . . 120 Explosions 45 | . . . . . . 45 . . . Melee . | . . . . . . . . . . Knockbacks 8 | . . . . . . . . . 8 Impact 1 | . . . . . . . . . 1 Kinetic 7 | . . . . . . . . . 7 Secondary . | . . . . . . . . . . Self-Inflicted Damage 161 | . . . . . . 92 . . 69 Shots 4 | . . . . . . 2 . . 2 Rammed 11 | . . . . . . . . . 11 Targets Rammed 17 | . 1 . . . 4 1 . . 11 Kicked 5 | . . . . . 4 1 . . . Crushed 1 | . 1 . . . . . . . . Highest Temperature 298 | . 69 18 . . 8 289 . . 298 Average Temperature 65 | . 22 10 . . 4 69 . . 86 Received Heat Transfer 1965 | . 48 . . . 240 171 . 63 1443 Siege Activations . | . . . . . . . . . . Robots Corrupted 1 | . . . . . . 1 . . . Combat Hostiles 1 | . . . . . . 1 . . . Parts Fried 1 | . . . . . . 1 . . . Impact Corruptions . | . . . . . . . . . . Robots Melted 2 | . . . . . 1 . . . 1 Combat Hostiles 2 | . . . . . 1 . . . 1 Parts Melted 8 | . 1 . . . 3 1 . . 3 Heat Transferred 3467 | . 481 . . 148 2183 457 . 37 161 Parts Sabotaged . | . . . . . . . . . . Parts Stolen . | . . . . . . . . . . Parts Stripped . | . . . . . . . . . . Power Chain Reactions 1 | . . . . . . 1 . . . Missiles Intercepted . | . . . . . . . . . . Latent Energy Used 400 | . . . . . . 400 . . . LE Corruption 6 | . . . . . . 6 . . . Alert | -11 -10 -10 -10 -9 -8 -7 -6 -6 -5 ------- Run | Yrd Mat Min Exi Min Mat Fac Fac DSF Fac Peak Influence 624 | . 119 51 . 28 495 475 206 354 624 Initial 185 | . . 46 . . 10 89 171 144 185 Average 216 | . 27 30 . 20 276 262 177 220 390 Maximum Alert Level 2 | . . . . . 2 2 1 1 2 Low Security (%) 53 | . 100 100 . 100 41 18 78 53 23 Level 1 24 | . . . . . 28 69 21 46 8 Level 2 22 | . . . . . 30 11 . . 67 Level 3 . | . . . . . . . . . . Level 4 . | . . . . . . . . . . Level 5 . | . . . . . . . . . . High Security . | . . . . . . . . . . Max Security . | . . . . . . . . . . Sterilizations 1 | . . . . . . . . 1 . Squads Dispatched 17 | . . . . . 2 5 1 . 9 Investigation 8 | . . . . . 2 2 1 . 3 Extermination 4 | . . . . . . 2 . . 2 Reinforcement 2 | . . . . . . 1 . . 1 Assault 1 | . . . . . . . . . 1 Garrison 2 | . . . . . . . . . 2 Intercept . | . . . . . . . . . . Searches Triggered . | . . . . . . . . . . Construction Impeded 2 | . . . . . . 1 . . 1 Haulers Reinforced . | . . . . . . . . . . Active Scanning Responses . | . . . . . . . . . . Cargo Convoy Interrupts . | . . . . . . . . . . Stealth | -11 -10 -10 -10 -9 -8 -7 -6 -6 -5 --------- Run | Yrd Mat Min Exi Min Mat Fac Fac DSF Fac Distress Signals 2 | . . . . . 1 . . . 1 Communications Jammed . | . . . . . . . . . . Distress Signals . | . . . . . . . . . . Times Spotted 98 | . 7 . . 2 25 19 . 10 35 Peak Tracking Total 7 | . 5 . . 2 6 5 . 4 7 Tactical Retreats 7 | . 1 . . . . . . 1 5 Traps | -11 -10 -10 -10 -9 -8 -7 -6 -6 -5 ------- Run | Yrd Mat Min Exi Min Mat Fac Fac DSF Fac Traps Triggered 2 | . . . . . . 1 . . 1 Indirectly . | . . . . . . . . . . Trap Hack Attempts . | . . . . . . . . . . Triggered . | . . . . . . . . . . Disarmed . | . . . . . . . . . . Reprogrammed . | . . . . . . . . . . Reused 2 | . . . . . . . . . 2 Traps Extracted . | . . . . . . . . . . Installed 4 | . . . . . . . . . 4 Triggered 2 | . . . . . . . . . 2 Most Traps Carried 4 | . . 4 4 4 4 4 4 4 4 Machines | -11 -10 -10 -10 -9 -8 -7 -6 -6 -5 ---------- Run | Yrd Mat Min Exi Min Mat Fac Fac DSF Fac Machines Disabled 7 | . . . . . . 2 . . 5 Max in Single Turn 3 | . . . . . . 1 . . 3 Garrison Access 1 | . . . . . . . . . 1 Machines Repaired . | . . . . . . . . . . Machines Dismantled . | . . . . . . . . . . Machines Sabotaged . | . . . . . . . . . . Overloaded Fab Kills . | . . . . . . . . . . Hacking | -11 -10 -10 -10 -9 -8 -7 -6 -6 -5 --------- Run | Yrd Mat Min Exi Min Mat Fac Fac DSF Fac Machines Accessed 19 | . 2 1 2 . 6 2 3 . 3 Terminals 10 | . 2 . . . 5 1 2 . . Fabricators 2 | . . . . . . 1 . . 1 Repair Stations . | . . . . . . . . . . Recycling Units 1 | . . . . . . . . . 1 Scanalyzers 2 | . . . . . 1 . 1 . . Garrison Access 1 | . . . . . . . . . 1 Total Hacks 58 | . 5 1 2 . 31 5 7 . 7 Successful 25 | . 1 1 2 . 17 1 2 . 1 Failed 33 | . 4 . . . 14 4 5 . 6 Catastrophic 8 | . 1 . . . 3 3 . . 1 Database Lockouts . | . . . . . . . . . . Manual 29 | . 1 . 1 . 19 2 4 . 2 Terminals 35 | . 5 . . . 24 2 4 . . Fabricators 5 | . . . . . . 3 . . 2 Repair Stations . | . . . . . . . . . . Recycling Units 3 | . . . . . . . . . 3 Scanalyzers 10 | . . . . . 7 . 3 . . Garrison Access 2 | . . . . . . . . . 2 Terminal Hacks 10 | . . 1 2 . 6 . 1 . . Record 1 | . . . 1 . . . . . . Open Door 1 | . . 1 . . . . . . . Open DSF 1 | . . . . . . . 1 . . Branch Access Points 1 | . . . . . 1 . . . . Alert Level 1 | . . . . . 1 . . . . Unreport Threat 2 | . . . . . 2 . . . . Dispatch Records 1 | . . . . . 1 . . . . Maintenance Status 1 | . . . . . 1 . . . . Derelict Proto ID Bank 1 | . . . 1 . . . . . . Fabricator Hacks 1 | . . . . . . 1 . . . Build 1 | . . . . . . 1 . . . Repair Station Hacks . | . . . . . . . . . . Recycling Unit Hacks . | . . . . . . . . . . Scanalyzer 6 | . . . . . 6 . . . . Insert Component 3 | . . . . . 3 . . . . Analyze 3 | . . . . . 3 . . . . Garrison Access Hacks . | . . . . . . . . . . Unauthorized Hacks 8 | . 1 . . . 5 . 1 . 1 Terminals 6 | . 1 . . . 5 . . . . Botnet 6 | . 1 . . . 5 . . . . Fabricators 1 | . . . . . . . . . 1 Overload 1 | . . . . . . . . . 1 Repair Stations . | . . . . . . . . . . Recycling Units . | . . . . . . . . . . Scanalyzers 1 | . . . . . . . 1 . . Extract 1 | . . . . . . . 1 . . Garrison Access . | . . . . . . . . . . Data Cores Recovered 1 | . . . . . 1 . . . . Used . | . . . . . . . . . . Hacking Detections 16 | . 2 . . . 6 2 3 . 3 Full Trace Events 7 | . 1 . . . 2 2 . . 2 Feedback Events . | . . . . . . . . . . Feedback Blocked . | . . . . . . . . . . Robot Schematics Acquired . | . . . . . . . . . . Robots Built . | . . . . . . . . . . Authchips . | . . . . . . . . . . Time . | . . . . . . . . . . Total Robot Build Rating . | . . . . . . . . . . Part Schematics Acquired 5 | . . . . . 3 . 2 . . Parts Built . | . . . . . . . . . . Authchips . | . . . . . . . . . . Time 53 | . . . . . . 53 . . . Total Part Build Rating . | . . . . . . . . . . Parts Repaired . | . . . . . . . . . . Time . | . . . . . . . . . . Parts Recycled . | . . . . . . . . . . Recycled Matter . | . . . . . . . . . . Retrieved Matter . | . . . . . . . . . . Retrieved Components . | . . . . . . . . . . Parts Scanalyzed 3 | . . . . . 3 . . . . Part Schematics Acquired 3 | . . . . . 3 . . . . Parts Damaged . | . . . . . . . . . . Bothacking | -11 -10 -10 -10 -9 -8 -7 -6 -6 -5 ------------ Run | Yrd Mat Min Exi Min Mat Fac Fac DSF Fac Used RIF Installer . | . . . . . . . . . . Robots Hacked . | . . . . . . . . . . Non-combat . | . . . . . . . . . . Combat . | . . . . . . . . . . Robot Hacks Applied . | . . . . . . . . . . Relay Couplers Released 2 | . . . . . . . . . 2 Machine Destruction 2 | . . . . . . . . . 2 Fabnet Peak Effective % . | . . . . . . . . . . Robots Rewired . | . . . . . . . . . . Allies Hacked . | . . . . . . . . . . Hacks Repelled . | . . . . . . . . . . Allies | -11 -10 -10 -10 -9 -8 -7 -6 -6 -5 -------- Run | Yrd Mat Min Exi Min Mat Fac Fac DSF Fac Total Allies 8 | . . 3 . 2 1 . . 1 1 Largest Group 5 | . . 3 3 5 5 1 . 1 1 Highest-Rated Group 90 | . . 40 40 88 90 90 . 90 90 Highest-Rated Ally 90 | . . 16 16 31 90 90 . 90 90 Total Orders . | . . . . . . . . . . Ally Attacks 81 | . . . . 2 46 1 . 12 20 Total Damage 1738 | . . . . 27 585 110 . 273 743 Kills 16 | . . . . 1 7 1 . 4 3 Allies Corrupted . | . . . . . . . . . . Allies Melted . | . . . . . . . . . . Field Lobotomies 3 | . . . . . 1 . . 1 1 Intel | -11 -10 -10 -10 -9 -8 -7 -6 -6 -5 ------- Run | Yrd Mat Min Exi Min Mat Fac Fac DSF Fac Robot Analysis Total . | . . . . . . . . . . Derelict Logs Recovered 2 | . . 1 . 1 . . . . . Drone Launches 6 | . . . . . . . . . 6 Drone Recoveries 2 | . . . . . . . . . 2 Exploration | -11 -10 -10 -10 -9 -8 -7 -6 -6 -5 ------------- Run | Yrd Mat Min Exi Min Mat Fac Fac DSF Fac Turns Passed 3685 | . 224 660 338 116 583 599 161 262 742 Spaces Moved 1864 | 1 64 449 237 78 271 220 81 96 367 Core 86 | . . . . . . . . . 86 Treads 105 | . 45 18 . . 34 . . . 8 Legs 744 | 1 19 . . . 193 220 81 96 134 Wheels 790 | . . 431 237 78 44 . . . . Hover 9 | . . . . . . . . . 9 Flight 130 | . . . . . . . . . 130 Fastest Speed 35 | 120 120 135 135 135 116 130 198 194 35 Average Speed 158 | 120 260 142 139 135 191 186 198 195 116 Slowest Speed 1800 | 120 320 320 150 135 240 200 198 198 1800 Overloaded Moves . | . . . . . . . . . . Propulsion Burnouts . | . . . . . . . . . . Robots Hopped 5 | . . . . . . . . . 5 Cave-ins Triggered . | . . . . . . . . . . Exploration Rate (%) 34 | 2 20 92 62 33 22 6 4 89 10 Regions Visited 9 Branch Regions 3 Pre-discovered Areas 3 | . . 1 1 1 . . . . . Known Exits Taken 1 | . . . . . . . 1 . . Unknown Exits Taken 7 | 1 1 1 1 1 1 1 . . . Scrap Searched 2 | . . 1 . 1 . . . . . Spaces Dug . | . . . . . . . . . . Terrain Destroyed 118 | . . . . 5 13 56 . 1 43 Melee . | . . . . . . . . . . Projectile 31 | . . . . 5 13 4 . . 9 AOE 85 | . . . . . . 52 . . 33 Terrain Rammed . | . . . . . . . . . . Walls Destroyed . | . . . . . . . . . . Machines Disabled . | . . . . . . . . . . Actions | -11 -10 -10 -10 -9 -8 -7 -6 -6 -5 --------- Run | Yrd Mat Min Exi Min Mat Fac Fac DSF Fac Total 2332 | . 87 463 246 89 335 346 82 144 540 Wait 88 | . . 1 . 12 14 47 . . 14 Move 1846 | . 63 448 236 77 270 219 80 95 358 Hop 4 | . . . . . . . . . 4 Pick Up 39 | . . 6 6 . 10 3 1 10 3 Fast Attach 44 | . 2 1 . . 9 12 . 4 16 Attach 31 | . 1 . 1 . 9 5 1 1 13 Detach 30 | . 1 1 3 . 7 7 . 3 8 Swap 18 | . 3 4 . . 1 3 . 5 2 Drop 55 | . . . . . 10 10 . 13 22 Fire 156 | . 16 2 . . 1 39 . 13 85 Melee . | . . . . . . . . . . Ram 9 | . . . . . . . . . 9 Kick 5 | . . . . . 4 1 . . . Crush 3 | . 1 . . . . . . . 2 Escape Stasis . | . . . . . . . . . . Rewire . | . . . . . . . . . . Trap 4 | . . . . . . . . . 4 Miscellaneous . | . . . . . . . . . . Route ------- -11/Scrapyard -10/Materials -10/Mines (discovered 3 exits: [*Mat x2] / *Exi) -10/Exiles (discovered 2 exits: [*Min x2]) -9/Mines -8/Materials -7/Factory -6/Factory -6/DSF -5/Factory History --------- Turn | Location | Event 1 | -11/Scrapyard | Discovered new exit (range 0) 1 | -11/Scrapyard | Entered Materials 117 | -10/Materials | Discovered new exit (range 13) 225 | -10/Materials | Entered Mines 270 | -10/Mines | Learned location of Storage (-7) 302 | -10/Mines | Found a hidden stash of uninstalled traps 306 | -10/Mines | Build established: Mutant 363 | -10/Mines | Assisted by bots powering up and referring to "LRC-V3" 375 | -10/Mines | Discovered new exit (range 7) 401 | -10/Mines | Received a Rocket Launcher from a helpful Derelict 476 | -10/Mines | Found the Drone Emporium 482 | -10/Mines | Found Prototype Device 482 | -10/Mines | Identified Sensor Drone Bay 707 | -10/Mines | Discovered new exit (range 6) 878 | -10/Mines | Deemed a non-threat by the Exiles lab entrance 879 | -10/Mines | Discovered new exit (range 5) 885 | -10/Mines | Entered Exiles 885 | -10/Exiles | Accompanied by 3 allies 907 | -10/Exiles | Discovered new exit (range 15) 947 | -10/Exiles | Met 8R-AWN 967 | -10/Exiles | Met EX-HEX 1005 | -10/Exiles | Met EX-BIN 1019 | -10/Exiles | Aligned with FarCom system 1021 | -10/Exiles | Given EX-Vault access code 1053 | -10/Exiles | Opened EX-Vault 1063 | -10/Exiles | Found Field Lobotomy Kit 1066 | -10/Exiles | Found Latent Energy Streamer 1070 | -10/Exiles | Found AWS/Thermal 1107 | -10/Exiles | Warned to stay clear of 0b10 Research branches 1149 | -10/Exiles | Met EX-DEC 1167 | -10/Exiles | Learned location of Zion (-7) 1206 | -10/Exiles | Discovered new exit (range 14) 1223 | -10/Exiles | Stole three prototypes: AWS/Thermal, Latent Energy Streamer, Field Lobotomy Kit 1223 | -10/Exiles | Entered Mines 1223 | -9/Mines | Accompanied by 3 allies 1224 | -9/Mines | Assembled infested the area 1229 | -9/Mines | Assisted by a Guerilla fighting off Assembled 1244 | -9/Mines | Learned location of Recycling (-7) 1323 | -9/Mines | Discovered new exit (range 5) 1339 | -9/Mines | Entered Materials 1339 | -8/Materials | Accompanied by 5 allies 1339 | -8/Materials | Evolved 4 slots: Propulsion x2, Utility x1, Weapon x1 1344 | -8/Materials | Led the pair of lost Derelicts to an unsafe place 1446 | -8/Materials | Destroyed 10 combat bots 1852 | -8/Materials | Discovered new exit (range 15) 1867 | -8/Materials | Assimilated H-61 Shepherd with FLK Orb 1922 | -8/Materials | Entered Factory 1922 | -7/Factory | Accompanied by 1 ally 1922 | -7/Factory | Evolved 2 slots: Propulsion x1, Utility x1 1924 | -7/Factory | FarCom data flow suspended 2041 | -7/Factory | Found Prototype Device 2041 | -7/Factory | Identified Active Sensor Suite 2413 | -7/Factory | Lost 3 parts (1n2w) 2488 | -7/Factory | Discovered new exit (range 12) 2521 | -7/Factory | Entered another Factory area 2521 | -6/Factory | Evolved 2 slots: Utility x1, Weapon x1 2680 | -6/Factory | Identified exit to DSF 2682 | -6/Factory | Entered DSF 2730 | -6/DSF | Assimilated H-61 Shepherd with FLK Orb 2740 | -6/DSF | Additional patrols routed to DSF 2853 | -6/DSF | Discovered new exit (range 15) 2940 | -6/DSF | Sterilization system engaged 2944 | -6/DSF | Entered Factory 2944 | -5/Factory | Accompanied by 1 ally 2944 | -5/Factory | Evolved 2 slots: Propulsion x1, Utility x1 3002 | -5/Factory | Build established: Scavenger-Tank 3393 | -5/Factory | Assimilated H-66 Slayer with FLK Orb 3459 | -5/Factory | Lost 15 parts (2p8n2u3w) 3528 | -5/Factory | System corruption reached 10% 3561 | -5/Factory | Core integrity fell below 50% 3627 | -5/Factory | Core integrity fell below 20% 3636 | -5/Factory | Lost 10 parts (5n3u2w) 3681 | -5/Factory | System corruption reached 30% 3686 | -5/Factory | Self-destructed Last Messages --------------- 03639_ Sensor Drone retrieved by Sensor Drone Bay. 03642_ Sensor Drone released from Sensor Drone Bay. 03644_ Sensor Drone retrieved by Sensor Drone Bay. 03645_ >> Lost connection to Sensor Drone. 03650_ System corrupted: Energy discharge (-21). 03654_ Subcomponent Replicator disabled. 03660_ Antigrav System destroyed. 03668_ Acquired Reaction Control System. 03673_ System corrupted: Matter fused (-10). 03680_ Neutrino Reactor explodes. 03680_ Field Propulsion Drive destroyed. 03680_ Neutrino Reactor explodes. 03680_ Slammed into P-70 Sage. 03680_ P-70 Sage knocked back. 03681_ Slammed into P-70 Sage. 03682_ Reaction Control System destroyed. 03682_ System corrupted by crushing effect (+4). 03682_ Destabilizing: System corrupted (+1). 03683_ Slammed into P-70 Sage. 03685_ Destabilizing: System corrupted (+2). Map ----- +----------------------------------------------------+ | ?????????????????????????????????????????????????? | | ?????????????????????????????????????????????????? | | ?????????????????????????????????????????????????? | | ?????????????????????????????????????????????????? | | ?????????????????????????????????????????????????? | | ?????????????????????????????????????????????????? | | ?????????????????????????????????????????????????? | | ?????????????????????????????????????????????????? | | ?????????????????????????????????????????????????? | | ?????????????????????????????????????????????????? | | ?????????????????????????????????????????????????? | | ?????????????????????????????????????????????????? | | ?????????????????????????????????????????????????? | | ?????????????????????????????????????????????????? | | ?????????????????????????????????????????????????? | | ?????????????????????????????????????????????????? | | ?????????????????????????????????????????????????? | | ?????????????????????????????????????????????????? | | ???????????????????##############????????????????? | | ???????????????????# #????????????????? | | ???????????????????# #????????????????? | | ???????????????????# #????????????????? | | ???????????????????# #????????????????? | | ???????????????????# #????????????????? | | ???????????????????# #????????????????? | | ???????????????????# @ #????????????????? | | ???????????????????# p #????????????????? | | ???????????????????# #????????????????? | | ???????????????????# #????????????????? | | ???????????????????# #????????????????? | | ???????????????????# #????????????????? | | ?????????????###########/#/######????????????????? | | ?????????????# ##g hh #???????????????????? | | ?????????????# """ ## #???????????????????? | | ?????????????# """ ## #???????????????????? | | ?????????????# """ ## #???????????????????? | | ?????????????# " ## #???????????????????? | | ?????????????# " ## #???????????????????? | | ?????????????# ## #???????????????????? | | ?????????????# "" ## #???????"???????????? | | ?????????????# """ ## #???????"???????????? | | ?????????????# """ ## #?????? """?????????? | | ?????????????# " ## #?????? """ ????????? | | ############## "" ## #?????? ?????????? | | # # ## #?????? ??????????? | | # """ #+###/##### #######+############# | | # """ # | | # """ # | | # """ F" # """ "" | | # """ """ " """ "" | +----------------------------------------------------+ Best States ------------- Heat Dissipation 59 Energy Generation 18 Energy Capacity 290 Matter Stores 300 Matter Capacity 300 Sight Range 20 Robot Scan Range 20 Terrain Scan Density 10 Armor Coverage 825 Core Shielding 20 Evasion (%) 69 Recoil Reduction 4 Defensive Hacking 10 Authchip Count 5 Item Schematics ----------------- Nuclear Core | -8/Materials | Scanalyzed Rocket Launcher | -8/Materials | Scanalyzed Heat Sink | -8/Materials | Scanalyzed Hacking Suite | -6/Factory | Extracted Imp. Grenade Launcher | -6/Factory | Extracted Robot Schematics ------------------ None Fabricated ------------ Nothing Alien Tech Used ----------------- None Achievements -------------- None Challenges ------------ None Game ------ Seed WeldingAlphaPod Manual? 0 Play Time 00:30:10 Cumulative 622.3 hours Start 2024.01.26 @ 21:15:29 End 2024.01.26 @ 21:45:10 Sessions 1 Manual Loads 0 Difficulty Rogue Special Mode None Game No. 585 Rogue 312 Adventurer 123 Explorer 150 Win Type - Total 25 Types 19/0/4/1/0/0/0/1/0 Lore% 80 Gallery% 91 Achievement% 76 Wizard Run 0 Options --------- ASCII 0 Keyboard 1 Movement Numpad Keybinds 0 Fullscreen 2 Font 18/X11Bold Map View 76x50 Zoom Use 0% Tactical HUD 1 Map Filters NONE Filters NONE Steam 1 RUN: fed31daa-ba83-4206-aeb2-15a5a0db62d5